Cogmind - Beta 14 @@@ ROGUE MODE // 2024.08.31 @ 21:56:10 Player: huluvu Result: Destroyed by S-27 Virus with Autogun Performance ------------- Evolutions (5) 2500 Regions Visited (9) 1800 Robots Destroyed (62) 310 Value Destroyed (2550) 2550 Prototype IDs (1) 20 Alien Tech Used (0) 0 Bonus (605) 605 TOTAL SCORE: 7785 Bonus ------- High Alert Combat Kills 105 Entered DSFs 500 Cogmind --------- Core Integrity 0/1000 Matter 207/550 Energy 555/555 System Corruption 0% Temperature Hot (228) Movement Walking (330) Ox3 Location -5/Extension Parts ------- > --- POWER (3) -------- Improved Deuterium Engine Light Angular Momentum Engine Neutrino Core > --- PROPULSION (4) --- Carbon-fiber Leg Carbon-fiber Leg Gravmag Array > --- UTILITY (6) ------ Advanced Heat Sink High-capacity Storage Unit Matter Compressor Weapon Cycler Transmission Jammer System Restoration Module > --- WEAPON (4) ------- Tesla Rifle Flak Gun KE Penetrator Mass Driver > --- INVENTORY (20) --- Deuterium Engine Light Nuclear Core Improved Deuterium Engine Improved Heat Sink Small Storage Unit Medium Matter Pod (100) Improved Trap Scanner Improved Signal Interpreter Weapon Cycler Weapon Cycler Graphene Brace Improved Plasma Cutter Spear Peak State ------------ > --- POWER ------------ Improved Deuterium Engine Light Angular Momentum Engine Neutrino Core > --- PROPULSION ------- Carbon-fiber Leg Carbon-fiber Leg Gravmag Array > --- UTILITY ---------- Advanced Heat Sink High-capacity Storage Unit Matter Compressor Weapon Cycler Transmission Jammer System Restoration Module > --- WEAPON ----------- Tesla Rifle KE Penetrator Mass Driver Improved Plasma Cutter > --- INVENTORY -------- Deuterium Engine Light Nuclear Core Improved Deuterium Engine Improved Heat Sink Small Storage Unit Medium Matter Pod Improved Trap Scanner Improved Signal Interpreter Weapon Cycler Weapon Cycler Graphene Brace Flak Gun Spear [Rating: 82] Favorites ----------- Power Improved Deuterium Engine Engine Improved Deuterium Engine Power Core Neutrino Core Propulsion Light Treads Treads Light Treads Leg Carbon-fiber Leg Hover Unit Gravmag Array Flight Unit Flight Unit Utility High-capacity Storage Unit Device Graphene Brace Storage High-capacity Storage Unit Hackware Hacking Suite Protection Improved Light Armor Plating Weapon Advanced Assault Cannon Energy Gun Particle Gun Energy Cannon Improved EM Pulse Cannon Ballistic Gun Gauss Rifle Ballistic Cannon Advanced Assault Cannon Launcher Grenade Launcher Special Weapon Improved Plasma Cutter Build | -11 -10 -9 -9 -8 -7 -7 -6 -5 -5 ------- Run | Yrd Mat Mat Min Mat Fac DSF Fac Fac Ext Slots Evolved 10 | . . 2 . 2 2 . 2 2 . Power 2 | . . . . . 1 . . 1 . Propulsion 2 | . . 2 . . . . . . . Utility 4 | . . . . 2 . . 1 1 . Weapon 2 | . . . . . 1 . 1 . . Parts Attached 118 | 7 4 8 3 27 5 6 26 31 1 Power 22 | 1 1 2 . 5 3 . 4 6 . Engine 20 | 1 1 2 . 4 3 . 4 5 . Core 2 | . . . . 1 . . . 1 . Reactor . | . . . . . . . . . . Propulsion 34 | 3 . 6 3 11 . 3 5 3 . Treads 15 | 2 . 3 . 4 . 3 3 . . Leg 12 | 1 . 3 3 3 . . . 2 . Wheel . | . . . . . . . . . . Hover 1 | . . . . . . . . 1 . Flight 6 | . . . . 4 . . 2 . . Utility 29 | 1 1 . . 5 . 1 11 10 . Device 23 | . 1 . . 2 . 1 10 9 . Storage 4 | 1 . . . 1 . . 1 1 . Processor . | . . . . . . . . . . Hackware 1 | . . . . 1 . . . . . Protection 1 | . . . . 1 . . . . . Artifact . | . . . . . . . . . . Weapon 33 | 2 2 . . 6 2 2 6 12 1 Energy Gun 4 | 1 1 . . . . . . 2 . Energy Cannon 13 | . . . . 2 2 1 3 5 . Ballistic Gun 8 | 1 . . . 3 . . . 3 1 Ballistic Cannon 5 | . . . . . . 1 3 1 . Launcher 2 | . 1 . . 1 . . . . . Special Weapon 1 | . . . . . . . . 1 . Impact Weapon . | . . . . . . . . . . Slashing Weapon . | . . . . . . . . . . Piercing Weapon . | . . . . . . . . . . Special Melee Weapon . | . . . . . . . . . . Unidentified Prototypes 1 | . . . . . . . 1 . . Parts Lost 34 | . 1 . . 8 . 5 5 15 . Power 5 | . . . . 1 . 1 . 3 . Propulsion 14 | . . . . 4 . 3 5 2 . Utility 5 | . . . . 1 . 1 . 3 . Weapon 10 | . 1 . . 2 . . . 7 . Highest Loss Streak 15 | . 1 . . 5 . 3 4 15 . To Critical Strikes . | . . . . . . . . . . Average Slot Usage (%) 90 | . 93 100 100 93 100 89 93 75 94 Engine 10 | . 14 11 11 5 15 11 13 11 11 Core 1 | . . . . 2 . . . 1 5 Treads 16 | . 28 24 6 17 30 25 20 2 . Leg 5 | . . 19 37 12 . . . 7 11 Flight 1 | . . . . 5 . . . . . Device 16 | . 9 11 11 15 7 11 19 19 23 Storage 8 | . 14 11 11 9 7 7 6 9 11 Hackware 3 | . . . . 1 7 7 6 1 . Protection 1 | . . . . 5 7 1 . . . Energy Gun 2 | . 12 11 11 2 . . . 1 5 Energy Cannon 8 | . . . . 8 15 14 14 3 . Ballistic Gun 3 | . 10 . . 6 7 . . 5 5 Ballistic Cannon 4 | . . . . . . 6 10 1 5 Peak Build Rating 82 | 6 10 13 14 29 38 51 65 82 82 Average Rating 42 | 3 7 12 13 24 35 42 54 59 81 On Entrance 28 | . 6 10 13 14 28 38 45 52 82 Naked Turns . | . . . . . . . . . . Heaviest Build 113 | 14 18 20 20 63 79 84 101 113 103 Greatest Support 89 | 40 40 60 60 89 89 89 80 40 30 Greatest Overweight (x) 32 | . . . . 5 . 1 32 22 3 Average Overweight (x) . | . . . . . . . 1 2 3 Largest Inventory Capacity 20 | 8 8 8 8 20 20 20 20 20 20 Average Capacity 16 | 7 8 8 8 14 20 20 20 20 20 Most Carried 20 | 7 8 8 8 20 20 20 20 19 13 Average Carried 14 | 3 5 7 7 12 18 19 18 13 13 Final Capacity 20 | 8 8 8 8 20 20 20 20 20 20 Final Carried 20 | 4 8 8 8 20 20 20 19 13 13 Class Distribution -------------------- 28% | Scavenger-Tank 22% | Scavenger-Mutant 22% | Mutant 19% | Scavenger-Gunner 5% | Tank Dominant Class ---------------- Mutant | -10/Materials Mutant | -9/Materials Scavenger-Mutant | -9/Mines Scavenger-Mutant | -8/Materials Tank | -7/Factory Scavenger-Tank | -7/DSF Scavenger-Tank | -6/Factory Scavenger-Gunner | -5/Factory Scavenger-Gunner | -5/Extension Resources | -11 -10 -9 -9 -8 -7 -7 -6 -5 -5 ----------- Run | Yrd Mat Mat Min Mat Fac DSF Fac Fac Ext Matter Collected 2115 | 231 148 54 126 403 . 219 386 548 . Remotely . | . . . . . . . . . . Salvage Created 2716 | . 160 54 83 831 . 567 449 528 44 Parts 121 | . 17 9 5 33 . 28 14 13 2 Haulers Intercepted . | . . . . . . . . . . Recyclers Shooed 1 | . . . . . . . 1 . . Parts Field Recycled . | . . . . . . . . . . Retrieved Matter . | . . . . . . . . . . Parts Self-Destructed . | . . . . . . . . . . Prevented . | . . . . . . . . . . Kills | -11 -10 -9 -9 -8 -7 -7 -6 -5 -5 ------- Run | Yrd Mat Mat Min Mat Fac DSF Fac Fac Ext Combat Hostiles Destroyed 54 | . 5 1 3 20 . 11 5 7 2 Guns 19 | . 3 1 1 10 . . . 3 1 Cannons 27 | . . . . 7 . 10 5 4 1 AOE 7 | . 2 . 2 3 . . . . . Classes Destroyed 12 | . 4 1 . 2 . 2 3 . . Worker 1 | . . . . . . . 1 . . Recycler 2 | . . . . . . . 1 1 . Mechanic 1 | . 1 . . . . . . . . Watcher 4 | . 1 1 . 1 . . 1 . . Swarmer 9 | . 3 . . 4 . . . . 2 Grunt 29 | . 2 . 3 9 . 7 3 5 . Brawler 1 | . . . . 1 . . . . . Sentry 9 | . . 1 . 5 . . 1 2 . Specialist 3 | . . . . . . 3 . . . Hunter 1 | . . . . 1 . . . . . Programmer 1 | . . . . . . . 1 . . Heavy 1 | . . . . . . 1 . . . Best Kill Streak 8 | . 5 2 3 8 . 6 3 3 2 Combat Bots Only 8 | . 3 1 3 8 . 6 2 3 2 Max Kills in Single Turn 3 | . 2 1 2 3 . 1 1 1 1 Gunslinging . | . . . . . . . . . . Exploded 2 | . 2 . 2 2 . . . . . Melee . | . . . . . . . . . . Uniques/NPCs Destroyed . | . . . . . . . . . . Combat | -11 -10 -9 -9 -8 -7 -7 -6 -5 -5 -------- Run | Yrd Mat Mat Min Mat Fac DSF Fac Fac Ext Hostile Shots Fired 576 | . 33 13 7 177 . 91 80 143 32 Missed 159 | . 6 6 2 63 . 19 27 26 10 Damage Taken 7088 | . 360 165 112 1678 . 1252 864 2306 351 Core 1551 | . 57 48 . 235 . 91 115 939 66 Absorbed by Shields 135 | . . . . . . . . 135 . Core Remaining (%) 82 | 100 77 . 88 57 . 87 86 . . Volleys Fired 164 | . 23 5 4 53 . 22 20 33 4 Largest 4 | . 2 1 1 2 . 3 4 4 4 Hottest 305 | . 85 65 65 140 . 188 272 305 183 Shots Fired 357 | . 28 5 4 98 . 64 79 65 14 Gun 128 | . 26 1 1 48 . 1 . 41 10 Cannon 213 | . . . . 46 . 63 79 21 4 Launcher 13 | . 2 4 3 4 . . . . . Special 3 | . . . . . . . . 3 . Kinetic 152 | . 18 . . 32 . 22 32 38 10 Thermal 158 | . 5 1 1 62 . 42 27 20 . Explosive 13 | . 2 4 3 4 . . . . . Electromagnetic 34 | . 3 . . . . . 20 7 4 Robot Hit Streak 12 | . 10 1 3 12 . 9 7 10 1 Robot Miss Streak 6 | . 3 . . 3 . 3 3 4 6 Penetration Max . | . . . . . . . . . . Secondary Targets . | . . . . . . . . . . Shots Hit Robots 227 | . 18 1 2 67 . 39 44 52 4 Core Hits 142 | . 13 6 6 35 . 21 14 45 2 Critical Kills . | . . . . . . . . . . Critical Parts Destroyed . | . . . . . . . . . . Critical Strikes 7 | . . . . 4 . 1 2 . . Burn 4 | . . . . 4 . . . . . Blast 3 | . . . . . . 1 2 . . Melee Attacks . | . . . . . . . . . . Impact . | . . . . . . . . . . Slashing . | . . . . . . . . . . Piercing . | . . . . . . . . . . Sneak Attacks . | . . . . . . . . . . Combat Hostiles . | . . . . . . . . . . Follow-up Attacks . | . . . . . . . . . . Damage Inflicted 6311 | . 508 94 252 1783 . 1143 1214 1184 133 Guns 1685 | . 252 15 18 577 . . . 718 105 Cannons 3625 | . . . . 825 . 1143 1214 415 28 Explosions 950 | . 256 79 234 381 . . . . . Melee . | . . . . . . . . . . Ramming . | . . . . . . . . . . Kinetic 2221 | . 184 . . 353 . 363 493 737 91 Thermal 2795 | . 145 15 18 1049 . 780 402 386 . Explosive 835 | . 141 79 234 381 . . . . . Electromagnetic 460 | . 38 . . . . . 319 61 42 Impact . | . . . . . . . . . . Slashing . | . . . . . . . . . . Piercing . | . . . . . . . . . . Highest Corruption 2 | . 2 . . . . . . . . Average Corruption 2 | . 2 . . . . . . . . Corruption Purged . | . . . . . . . . . . Corruption Blocked . | . . . . . . . . . . Effects 1 | . 1 . . . . . . . . Data Loss (minor) 1 | . 1 . . . . . . . . Overload Shots . | . . . . . . . . . . Overflow Damage 57 | . 24 . . 3 . . 30 . . Projectiles 33 | . . . . 3 . . 30 . . Explosions 24 | . 24 . . . . . . . . Melee . | . . . . . . . . . . Knockbacks 11 | . . . . . . 2 6 3 . Impact . | . . . . . . . . . . Kinetic 8 | . . . . . . 2 4 2 . Secondary 3 | . . . . . . . 2 1 . Self-Inflicted Damage 185 | . 60 72 53 . . . . . . Shots 8 | . 2 3 3 . . . . . . Rammed . | . . . . . . . . . . Targets Rammed . | . . . . . . . . . . Kicked . | . . . . . . . . . . Crushed . | . . . . . . . . . . Highest Temperature 758 | . . . . 33 . 255 736 758 228 Average Temperature 207 | . . . . 16 . 93 258 366 107 Received Heat Transfer 2745 | . 141 48 33 828 . 486 291 918 . Effects 53 | . . . . . . . 26 27 . Shutdowns 16 | . . . . . . . 8 8 . Energy Bleed 7 | . . . . . . . 2 5 . Interference 5 | . . . . . . . 3 2 . Matter Decay 6 | . . . . . . . 2 4 . Short Circuit 5 | . . . . . . . 2 3 . Damage (minor) 9 | . . . . . . . 5 4 . Damage (major) 4 | . . . . . . . 4 . . Damage (core) 1 | . . . . . . . . 1 . Siege Activations . | . . . . . . . . . . Robots Corrupted . | . . . . . . . . . . Combat Hostiles . | . . . . . . . . . . Parts Fried 2 | . . . . . . . 2 . . Impact Corruptions . | . . . . . . . . . . Robots Melted 1 | . . . . . . 1 . . . Combat Hostiles 1 | . . . . . . 1 . . . Parts Melted 6 | . . . . 3 . 1 . 2 . Heat Transferred 4544 | . 174 37 37 2035 . 1110 557 594 . Parts Sabotaged . | . . . . . . . . . . Parts Stolen . | . . . . . . . . . . Parts Stripped . | . . . . . . . . . . Power Chain Reactions 1 | . 1 . . . . . . . . Alert | -11 -10 -9 -9 -8 -7 -7 -6 -5 -5 ------- Run | Yrd Mat Mat Min Mat Fac DSF Fac Fac Ext Peak Influence 631 | . 166 223 168 631 195 361 204 129 136 Initial 191 | . . 69 86 65 191 136 189 . 63 Average 164 | . 49 163 163 427 194 263 87 40 78 Maximum Alert Level 2 | . . 1 . 2 . 1 1 . . Low Security (%) 69 | 100 100 66 100 14 100 23 78 100 100 Level 1 15 | . . 33 . 14 . 76 21 . . Level 2 15 | . . . . 71 . . . . . Level 3 . | . . . . . . . . . . Level 4 . | . . . . . . . . . . Level 5 . | . . . . . . . . . . High Security . | . . . . . . . . . . Max Security . | . . . . . . . . . . Sterilizations 1 | . . . . . . 1 . . . Squads Dispatched 9 | . . 2 . 2 . 2 2 1 . Investigation . | . . . . . . . . . . Extermination 2 | . . . . . . . 1 1 . Reinforcement 6 | . . 2 . 1 . 2 1 . . Assault 1 | . . . . 1 . . . . . Garrison . | . . . . . . . . . . Intercept . | . . . . . . . . . . Searches Triggered . | . . . . . . . . . . Construction Impeded . | . . . . . . . . . . Haulers Reinforced . | . . . . . . . . . . Active Scanning Responses . | . . . . . . . . . . Cargo Convoy Interrupts . | . . . . . . . . . . Stealth | -11 -10 -9 -9 -8 -7 -7 -6 -5 -5 --------- Run | Yrd Mat Mat Min Mat Fac DSF Fac Fac Ext Distress Signals 1 | . . 1 . . . . . . . Communications Jammed 21 | . . . . . . . 21 . . Distress Signals 21 | . . . . . . . 21 . . Times Spotted 81 | . 8 8 3 28 . 10 12 7 5 Peak Tracking Total 9 | . 4 4 3 9 . 4 5 4 5 Tactical Retreats 4 | . . . . 2 . 1 1 . . Traps | -11 -10 -9 -9 -8 -7 -7 -6 -5 -5 ------- Run | Yrd Mat Mat Min Mat Fac DSF Fac Fac Ext Traps Triggered 1 | . 1 . . . . . . . . Indirectly . | . . . . . . . . . . Trap Hack Attempts . | . . . . . . . . . . Triggered . | . . . . . . . . . . Disarmed . | . . . . . . . . . . Reprogrammed . | . . . . . . . . . . Reused . | . . . . . . . . . . Traps Extracted . | . . . . . . . . . . Installed . | . . . . . . . . . . Triggered . | . . . . . . . . . . Machines | -11 -10 -9 -9 -8 -7 -7 -6 -5 -5 ---------- Run | Yrd Mat Mat Min Mat Fac DSF Fac Fac Ext Machines Disabled 9 | . . 3 . 2 . . 1 2 1 Max in Single Turn 1 | . . 1 . 1 . . 1 1 1 Machines Repaired . | . . . . . . . . . . Machines Dismantled 2 | . . . . . . . . 1 1 Machines Sabotaged . | . . . . . . . . . . Overloaded Fab Kills . | . . . . . . . . . . Hacking | -11 -10 -9 -9 -8 -7 -7 -6 -5 -5 --------- Run | Yrd Mat Mat Min Mat Fac DSF Fac Fac Ext Machines Accessed 4 | . . 2 . 1 1 . . . . Terminals 4 | . . 2 . 1 1 . . . . Fabricators . | . . . . . . . . . . Repair Stations . | . . . . . . . . . . Recycling Units . | . . . . . . . . . . Scanalyzers . | . . . . . . . . . . Garrison Access . | . . . . . . . . . . Total Hacks 9 | . . 4 . 4 1 . . . . Successful 8 | . . 3 . 4 1 . . . . Failed 1 | . . 1 . . . . . . . Catastrophic . | . . . . . . . . . . Database Lockouts . | . . . . . . . . . . Manual . | . . . . . . . . . . Terminals 9 | . . 4 . 4 1 . . . . Fabricators . | . . . . . . . . . . Repair Stations . | . . . . . . . . . . Recycling Units . | . . . . . . . . . . Scanalyzers . | . . . . . . . . . . Garrison Access . | . . . . . . . . . . Terminal Hacks 8 | . . 3 . 4 1 . . . . Record 3 | . . 1 . 2 . . . . . Open DSF 1 | . . . . . 1 . . . . Branch Access Points 1 | . . . . 1 . . . . . Dispatch Records 1 | . . 1 . . . . . . . Hauler Manifests 2 | . . 1 . 1 . . . . . Fabricator Hacks . | . . . . . . . . . . Repair Station Hacks . | . . . . . . . . . . Recycling Unit Hacks . | . . . . . . . . . . Scanalyzer . | . . . . . . . . . . Garrison Access Hacks . | . . . . . . . . . . Unauthorized Hacks . | . . . . . . . . . . Terminals . | . . . . . . . . . . Fabricators . | . . . . . . . . . . Repair Stations . | . . . . . . . . . . Recycling Units . | . . . . . . . . . . Scanalyzers . | . . . . . . . . . . Garrison Access . | . . . . . . . . . . Data Cores Recovered . | . . . . . . . . . . Used . | . . . . . . . . . . Hacking Detections 3 | . . 2 . 1 . . . . . Full Trace Events . | . . . . . . . . . . Feedback Events . | . . . . . . . . . . Feedback Blocked . | . . . . . . . . . . Robot Schematics Acquired . | . . . . . . . . . . Robots Built . | . . . . . . . . . . Authchips . | . . . . . . . . . . Time . | . . . . . . . . . . Total Robot Build Rating . | . . . . . . . . . . Part Schematics Acquired . | . . . . . . . . . . Parts Built . | . . . . . . . . . . Authchips . | . . . . . . . . . . Time . | . . . . . . . . . . Total Part Build Rating . | . . . . . . . . . . Parts Repaired . | . . . . . . . . . . Time . | . . . . . . . . . . Parts Recycled . | . . . . . . . . . . Recycled Matter . | . . . . . . . . . . Retrieved Matter . | . . . . . . . . . . Retrieved Components . | . . . . . . . . . . Parts Scanalyzed . | . . . . . . . . . . Part Schematics Acquired . | . . . . . . . . . . Parts Damaged . | . . . . . . . . . . Bothacking | -11 -10 -9 -9 -8 -7 -7 -6 -5 -5 ------------ Run | Yrd Mat Mat Min Mat Fac DSF Fac Fac Ext Used RIF Installer . | . . . . . . . . . . Robots Hacked . | . . . . . . . . . . Non-combat . | . . . . . . . . . . Combat . | . . . . . . . . . . Robot Hacks Applied . | . . . . . . . . . . Relay Couplers Released . | . . . . . . . . . . Fabnet Peak Effective % . | . . . . . . . . . . Robots Rewired . | . . . . . . . . . . Allies Hacked . | . . . . . . . . . . Hacks Repelled . | . . . . . . . . . . Allies | -11 -10 -9 -9 -8 -7 -7 -6 -5 -5 -------- Run | Yrd Mat Mat Min Mat Fac DSF Fac Fac Ext Total Allies . | . . . . . . . . . . Largest Group . | . . . . . . . . . . Highest-Rated Group . | . . . . . . . . . . Highest-Rated Ally . | . . . . . . . . . . Total Orders . | . . . . . . . . . . Ally Attacks . | . . . . . . . . . . Total Damage . | . . . . . . . . . . Kills . | . . . . . . . . . . Allies Corrupted . | . . . . . . . . . . Allies Melted . | . . . . . . . . . . Intel | -11 -10 -9 -9 -8 -7 -7 -6 -5 -5 ------- Run | Yrd Mat Mat Min Mat Fac DSF Fac Fac Ext Robot Analysis Total . | . . . . . . . . . . Derelict Logs Recovered . | . . . . . . . . . . Drone Launches . | . . . . . . . . . . Drone Recoveries . | . . . . . . . . . . Exploration | -11 -10 -9 -9 -8 -7 -7 -6 -5 -5 ------------- Run | Yrd Mat Mat Min Mat Fac DSF Fac Fac Ext Turns Passed 4048 | 73 314 124 75 858 141 250 1240 758 215 Spaces Moved 1517 | 42 155 59 49 423 80 72 394 184 59 Core 22 | 10 . . . . . . 4 8 . Treads 1052 | 32 155 59 3 225 80 72 390 36 . Legs 383 | . . . 46 138 . . . 140 59 Wheels . | . . . . . . . . . . Hover . | . . . . . . . . . . Flight 60 | . . . . 60 . . . . . Fastest Speed 50 | 50 160 160 120 111 160 160 243 190 330 Average Speed 212 | 133 160 160 122 142 160 212 282 315 330 Slowest Speed 1650 | 160 160 160 160 450 160 250 1650 1150 330 Overloaded Moves . | . . . . . . . . . . Propulsion Burnouts . | . . . . . . . . . . Robots Hopped . | . . . . . . . . . . Cave-ins Triggered . | . . . . . . . . . . Exploration Rate (%) 20 | 4 28 9 18 30 1 85 12 5 13 Regions Visited 9 Branch Regions 2 Pre-discovered Areas . | . . . . . . . . . . Known Exits Taken 1 | . . . . . 1 . . . . Unknown Exits Taken 7 | 1 1 1 1 1 . . 1 1 . Scrap Searched . | . . . . . . . . . . Spaces Dug 32 | . 16 16 . . . . . . . Terrain Destroyed 123 | . 22 23 23 34 . . 14 3 4 Melee . | . . . . . . . . . . Projectile 36 | . . . . 15 . . 14 3 4 AOE 87 | . 22 23 23 19 . . . . . Terrain Rammed . | . . . . . . . . . . Walls Destroyed . | . . . . . . . . . . Machines Disabled . | . . . . . . . . . . Actions | -11 -10 -9 -9 -8 -7 -7 -6 -5 -5 --------- Run | Yrd Mat Mat Min Mat Fac DSF Fac Fac Ext Total 2048 | 58 193 83 59 584 94 126 473 310 68 Wait 71 | . 2 . . 20 . 5 8 36 . Move 1508 | 41 154 58 48 422 79 71 393 183 59 Hop . | . . . . . . . . . . Pick Up 117 | 10 8 7 2 42 6 12 14 16 . Fast Attach . | . . . . . . . . . . Attach 60 | 6 2 2 . 10 2 4 14 20 . Detach 7 | . . . . . . . 6 1 . Swap 58 | 1 2 6 3 17 3 2 12 11 1 Drop 53 | . 2 5 2 20 4 10 6 4 . Fire 164 | . 23 5 4 53 . 22 20 33 4 Melee . | . . . . . . . . . . Ram . | . . . . . . . . . . Kick . | . . . . . . . . . . Crush . | . . . . . . . . . . Escape Stasis . | . . . . . . . . . . Rewire . | . . . . . . . . . . Trap . | . . . . . . . . . . Miscellaneous 10 | . . . . . . . . 6 4 Route ------- -11/Scrapyard -10/Materials -9/Materials -9/Mines -8/Materials -7/Factory -7/DSF -6/Factory -5/Factory -5/Extension History --------- Turn | Location | Event 27 | -11/Scrapyard | Discovered new exit (range 15) 74 | -11/Scrapyard | Entered Materials 302 | -10/Materials | Build established: Mutant 362 | -10/Materials | Discovered new exit (range 13) 388 | -10/Materials | Entered another Materials area 388 | -9/Materials | Evolved 2 slots: Propulsion x2 485 | -9/Materials | Discovered new exit (range 15) 512 | -9/Materials | Entered Mines 575 | -9/Mines | Discovered new exit (range 11) 587 | -9/Mines | Entered Materials 587 | -8/Materials | Evolved 2 slots: Utility x2 855 | -8/Materials | Build established: Scavenger-Mutant 885 | -8/Materials | Destroyed 8 combat bots 901 | -8/Materials | Lost 5 parts (3n1u1w) 1273 | -8/Materials | Discovered new exit (range 8) 1387 | -8/Materials | First assault squad dispatched 1445 | -8/Materials | Entered Factory 1445 | -7/Factory | Evolved 2 slots: Power x1, Weapon x1 1476 | -7/Factory | Identified exit to DSF 1586 | -7/Factory | Entered DSF 1603 | -7/DSF | Additional patrols routed to DSF 1680 | -7/DSF | Lost 3 parts (2n1u) 1687 | -7/DSF | Found Prototype Device 1726 | -7/DSF | Sterilization system engaged 1746 | -7/DSF | Ambient heat levels rising (+10) 1761 | -7/DSF | Ambient heat levels rising (+10) 1776 | -7/DSF | Ambient heat levels rising (+10) 1791 | -7/DSF | Ambient heat levels rising (+10) 1801 | -7/DSF | Discovered new exit (range 15) 1806 | -7/DSF | Ambient heat levels rising (+10) 1821 | -7/DSF | Ambient heat levels rising (+10) 1836 | -7/DSF | Ambient heat levels rising (+10) 1836 | -7/DSF | Entered Factory 1836 | -6/Factory | Evolved 2 slots: Utility x1, Weapon x1 1844 | -6/Factory | Identified Active Sensor Suite 1966 | -6/Factory | Build established: Scavenger-Tank 2642 | -6/Factory | Lost 4 parts (4n) 3022 | -6/Factory | Discovered new exit (range 11) 3076 | -6/Factory | Entered another Factory area 3076 | -5/Factory | Evolved 2 slots: Power x1, Utility x1 3252 | -5/Factory | Core integrity fell below 50% 3288 | -5/Factory | Lost 15 parts (3p2n3u7w) 3320 | -5/Factory | Core integrity fell below 20% 3744 | -5/Factory | Discovered new exit (range 6) 3822 | -5/Factory | Build established: Scavenger-Gunner 3834 | -5/Factory | Entered Extension 3876 | -5/Extension | Disrupted transfer network 4049 | -5/Extension | Destroyed by S-27 Virus with Autogun Last Messages --------------- 03808_ Acquired Mass Driver. 03826_ ALERT: Rogue bot located, Programmers report to Factory Zone 1H. 03829_ K-01 Serf collects debris. LOCATION=UNKNOWN GOAL=ESCAPE 03854_ T-07 Excavator enters Transfer Station. 03854_ Dismantling Transfer Station with Imp. Plasma Cutter. 03858_ U-05 Engineer exits Transfer Station. 03858_ Dismantling Transfer Station with Imp. Plasma Cutter. 03859_ U-05 Engineer enters Transfer Station. 03860_ Dismantling Transfer Station with Imp. Plasma Cutter. 03860_ Transfer Station dismantled. 03876_ ALERT: Transfer network disrupted, dispatching additional forces. 04034_ C-30 ARC bursts open, deploying its payload. 04034_ S-27 Virus unfolds itself. 04037_ S-27 Virus destroyed. 04040_ Slug penetrates Wall. 04045_ S-27 Virus misfires. 04047_ Slug penetrates S-27 Virus. 04047_ S-27 Virus destroyed. Map ----- +----------------------------------------------------+ | ?????????????????????????????????????????????????? | | ?????????????????????????????????????????????????? | | ?????????????????????????????????????????????????? | | ?????????????????????????????????????????????????? | | ?????????????????????????????????????????????????? | | ?????????????????????????????????????????????????? | | ?????????????????????????????????????????????????? | | ?????????????????????????????????????????????????? | | ?????????????????????????????????????????????????? | | ?????????????????????????????????????????????????? | | ?????????????????????????????????????????????????? | | ?????????????????????????????????????????????????? | | ?????????????????????????????????????????????????? | | ?????????????????????????????????????????????????? | | ?????????????????????????????????????????????????? | | ?????????????????????????????????????????????????? | | ?????????????????????????????????????????????????? | | ?????????????????????????????????????????????????? | | ?????????????????????????????????????????????????? | | ?????????????????????????????????????????????????? | | ?????????????????????????????????????????????????? | | ?????????????????????????????????????????????????? | | ?????????????????????????????????????????????????? | | ################################;;####???????????? | | %s% ????????? | | @ R *% ????????? | | s s= ????????? | | ????????? | | ?????????? | | ########################################?????????? | | ?????????????????????????????????????????????????? | | ?????????????????????????????????????????????????? | | ?????????????????????????????????????????????????? | | ?????????????????????????????????????????????????? | | ?????????????????????????????????????????????????? | | ?????????????????????????????????????????????????? | | ?????????????????????????????????????????????????? | | | | | | | | | | | | | | | | | | | | | | | | | | | +----------------------------------------------------+ Best States ------------- Heat Dissipation 67 Energy Generation 43 Energy Capacity 555 Matter Stores 300 Matter Capacity 550 Sight Range 16 Terrain Scan Density 10 Jamming Range 12 Armor Coverage 150 Weapon Cycling 15 Evasion (%) 63 Recoil Reduction 4 Offensive Hacking 10 Item Schematics ----------------- None Robot Schematics ------------------ None Fabricated ------------ Nothing Alien Tech Used ----------------- None Achievements -------------- None Challenges ------------ None Game ------ Seed GodGhostRipper Manual? 0 Play Time 00:48:17 Cumulative 10.9 hours Start 2024.08.31 @ 21:08:28 End 2024.08.31 @ 21:56:10 Sessions 1 Manual Loads 0 Difficulty Rogue Special Mode None Game No. 15 Rogue 15 Adventurer 0 Explorer 0 Win Type - Total 0 Types 0/0/0/0/0/0/0/0/0 Lore% 9 Gallery% 24 Achievement% 17 Wizard Run 0 Options --------- Layout 0 ASCII 0 Keyboard 0 Movement Mouse Keybinds 0 Fullscreen 1 Font 24/Smallcaps Map View 76x50 Zoom Use 0% Tactical HUD 1 Map Filters NONE Filters NONE Steam 1 RUN: 2969a90e-5e25-431a-8427-cd8ff65e6b07